Workbook

Sheet паспорт
A1: ПАТ "УКРТРАНСГАЗ" | G1: ПАСПОРТ ФІЗИКО-ХІМІЧНИХ ПОКАЗНИКІВ ПРИРОДНОГО ГАЗУ № 855
A2: Філія "УМГ "Черкаситрансгаз" | G2: переданого Кременчуцьким ЛВУМГ та прийнятого ПАТ "Полтавагаз", ТОВ "Епіцентр К", ТОВ "Форт", ДП "Укравтогаз"
A3: Кременчуцьке ЛВУМГ | G3: Маршрут № 855
A4: Вимірювальна хіміко-аналітична лабораторія
A5: Кременчуцького промислового майданчика
A6: Свідоцтво № 0612 КФ від 30.12.15р. чинне до 20.06.19р. | K6: по газопроводу "Диканька-Кременчук-Кривий Ріг" | V6: за період з | X6: 2017-02-01 | Z6: по | AA6: 2017-02-28
A8: Число місяця | B8: Компонентний склад, % мол. | N8: Фізико-хімічні показники газу обчислені на основі компонентного складу, 101,325 кПа | X8: Температура точки роси за вологою (Р = 3.92 МПа), °С | Y8: Температура точки роси за вуглеводнями, °С | Z8: Вміст сірководню, г/м3 | AA8: Вміст меркаптанової сірки, г/м3 | AB8: Вміст механічних домішок, г/м3
N9: Густина абсолютна, кг/м3,при 20 °С, | O9: Температура вимірювання/згоряння при 20/25°С
B10: метан, С1 | C10: етан, С2 | D10: пропан, С3 | E10: ізо-бутан, і-С4 | F10: н-бутан, н-С4 | G10: нео-пентан, нео-С5 | H10: ізо-пентан, і-С5 | I10: н-пентан, н-С5 | J10: гексани та вищі, С6+ | K10: кисень, О2 | L10: азот, N2 | M10: діоксид вуглецю, CО2 | O10: Теплота згоряння нижча | R10: Теплота згоряння вища | U10: Число Воббе вище
O11: ккал/м³ | P11: МДж/м³ | Q11: кВт⋅год/м³ | R11: ккал/м³ | S11: МДж/м³ | T11: кВт⋅год/м³ | U11: ккал/м³ | V11: МДж/м³ | W11: кВт⋅год/м³
A12: 1 | B12: 91.995 | C12: 4.06 | D12: 0.994 | E12: 0.117 | F12: 0.172 | G12: 0.004 | H12: 0.048 | I12: 0.04 | J12: 0.07 | K12: 0.001 | L12: 1.614 | M12: 0.885 | N12: 0,7314 | O12: =P12*238.8459 -> 8261.679681 | P12: 34.59 | Q12: =P12/3.6 -> 9.608333333 | R12: =S12*238.8459 -> 9152.574888 | S12: 38.32 | T12: =S12/3.6 -> 10.64444444 | U12: 11 745 | V12: 49,17 | W12: =V12/3.6 -> 13.65833333 | X12: -9,5 | AC12: =SUM(B12:M12)+$K$43+$N$43 -> 100
A13: 2 | O13: =P13*238.8459 -> 8261.679681 | P13: 34.59 | Q13: 9.608333333 | R13: =S13*238.8459 -> 9152.574888 | S13: 38.32 | T13: 10.64444444 | AC13: 0
A14: 3 | O14: 8261.679681 | P14: 34.59 | Q14: 9.608333333 | R14: 9152.574888 | S14: 38.32 | T14: 10.64444444 | AC14: 0 | AD14: =IF(AC14=100,"ОК"," ") -> 
A15: 4 | O15: 8261.679681 | P15: 34.59 | Q15: 9.608333333 | R15: 9152.574888 | S15: 38.32 | T15: 10.64444444 | AC15: 0 | AD15: =IF(AC15=100,"ОК"," ") -> 
A16: 5 | O16: 8261.679681 | P16: 34.59 | Q16: 9.608333333 | R16: 9152.574888 | S16: 38.32 | T16: 10.64444444 | AC16: 0
A17: 6 | O17: 8261.679681 | P17: 34.59 | Q17: 9.608333333 | R17: 9152.574888 | S17: 38.32 | T17: 10.64444444 | AC17: 0
A18: 7 | B18: 91.997 | C18: 4.054 | D18: 0.959 | E18: 0.118 | F18: 0.169 | G18: 0.004 | H18: 0.049 | I18: 0.042 | J18: 0.079 | K18: 0.001 | L18: 1.646 | M18: 0.882 | N18: 0,7385 | O18: 8256.902763 | P18: 34.57 | Q18: 9.602777778 | R18: 9147.79797 | S18: 38.3 | T18: 10.63888889 | U18: 11 740 | V18: 49,15 | W18: =V18/3.6 -> 13.65277778 | X18: -9,3 | AC18: 100 | AD18: ОК
A19: 8 | O19: 8256.902763 | P19: 34.57 | Q19: 9.602777778 | R19: 9147.79797 | S19: 38.3 | T19: 10.63888889 | AC19: 0
A20: 9 | O20: 8256.902763 | P20: 34.57 | Q20: 9.602777778 | R20: 9147.79797 | S20: 38.3 | T20: 10.63888889 | AC20: 0
A21: 10 | O21: 8256.902763 | P21: 34.57 | Q21: =P21/3.6 -> 9.602777778 | R21: 9147.79797 | S21: 38.3 | T21: =S21/3.6 -> 10.63888889 | AC21: 0
A22: 11 | O22: 8256.902763 | P22: 34.57 | Q22: 9.602777778 | R22: 9147.79797 | S22: 38.3 | T22: 10.63888889 | AC22: 0
A23: 12 | O23: 8256.902763 | P23: 34.57 | Q23: 9.602777778 | R23: 9147.79797 | S23: 38.3 | T23: 10.63888889 | AC23: 0
A24: 13 | O24: 8256.902763 | P24: 34.57 | Q24: 9.602777778 | R24: 9147.79797 | S24: 38.3 | T24: 10.63888889 | AC24: 0
A25: 14 | O25: 8256.902763 | P25: 34.57 | Q25: 9.602777778 | R25: 9147.79797 | S25: 38.3 | T25: 10.63888889 | AC25: 0
A26: 15 | B26: 91.5081 | C26: 4.2506 | D26: 0.9868 | E26: 0.114 | F26: 0.1751 | G26: 0.0042 | H26: 0.0497 | I26: 0.0416 | J26: 0.0676 | K26: 0.0013 | L26: 1.8269 | M26: 0.9741 | N26: 0,7345 | O26: 8247.348927 | P26: 34.53 | Q26: 9.591666667 | R26: 9138.244134 | S26: 38.26 | T26: 10.62777778 | U26: 11 701 | V26: 48,99 | W26: 13.60833333 | X26: -9,6 | AC26: 100 | AD26: ОК
A27: 16 | O27: 8247.348927 | P27: 34.53 | Q27: =P27/3.6 -> 9.591666667 | R27: 9138.244134 | S27: 38.26 | T27: =S27/3.6 -> 10.62777778 | AC27: 0
A28: 17 | O28: 8247.348927 | P28: 34.53 | Q28: 9.591666667 | R28: 9138.244134 | S28: 38.26 | T28: 10.62777778 | AC28: 0
A29: 18 | O29: 8247.348927 | P29: 34.53 | Q29: 9.591666667 | R29: 9138.244134 | S29: 38.26 | T29: 10.62777778 | AC29: 0
A30: 19 | O30: 8247.348927 | P30: 34.53 | Q30: 9.591666667 | R30: 9138.244134 | S30: 38.26 | T30: 10.62777778 | AC30: 0
A31: 20 | O31: 8247.348927 | P31: 34.53 | Q31: 9.591666667 | R31: 9138.244134 | S31: 38.26 | T31: 10.62777778 | AC31: 0 | AD31: =IF(AC31=100,"ОК"," ") -> 
A32: 21 | B32: 91.363 | C32: 4.3015 | D32: 1.048 | E32: 0.1171 | F32: 0.1819 | G32: 0.004 | H32: 0.0511 | I32: 0.0434 | J32: 0.0733 | K32: 0.0014 | L32: 1.7954 | M32: 1.0199 | N32: 0,7363 | O32: 8261.679681 | P32: 34.59 | Q32: 9.608333333 | R32: 9152.574888 | S32: 38.32 | T32: 10.64444444 | U32: 11 705 | V32: 49,01 | W32: 13.61388889 | X32: -9,1 | Z32: 0,0030 | AA32: 0,0040 | AB32: відсутні | AC32: 100 | AD32: ОК
A33: 22 | O33: 8261.679681 | P33: 34.59 | Q33: 9.608333333 | R33: 9152.574888 | S33: 38.32 | T33: 10.64444444 | AC33: 0
A34: 23 | O34: 8261.679681 | P34: 34.59 | Q34: =P34/3.6 -> 9.608333333 | R34: 9152.574888 | S34: 38.32 | T34: =S34/3.6 -> 10.64444444 | AC34: 0 | AD34: =IF(AC34=100,"ОК"," ") -> 
A35: 24 | O35: 8261.679681 | P35: 34.59 | Q35: 9.608333333 | R35: 9152.574888 | S35: 38.32 | T35: 10.64444444 | AC35: 0
A36: 25 | O36: 8261.679681 | P36: 34.59 | Q36: 9.608333333 | R36: 9152.574888 | S36: 38.32 | T36: 10.64444444 | AC36: 0
A37: 26 | O37: 8261.679681 | P37: 34.59 | Q37: 9.608333333 | R37: 9152.574888 | S37: 38.32 | T37: =S37/3.6 -> 10.64444444 | AC37: 0
A38: 27 | O38: 8261.679681 | P38: 34.59 | Q38: 9.608333333 | R38: 9152.574888 | S38: 38.32 | T38: 10.64444444 | AC38: 0
A39: 28 | O39: 8261.679681 | P39: 34.59 | Q39: 9.608333333 | R39: 9152.574888 | S39: 38.32 | T39: 10.64444444 | AC39: 0
A40: 29 | AC40: 0
A41: 30 | AC41: 0
A42: 31 | AC42: 0
A43: Вміст одоранта при одоризації становить 16 г на 1 000 м³ газу | O43: =AVERAGEA(O12:O39) -> 8257.243971 | P43: =AVERAGEA(P12:P39) -> 34.57142857 | Q43: 9.603174603 | R43: 9148.139178 | S43: 38.30142857 | T43: 10.63928571
H44: Середньозважене значення теплоти згоряння:
B46: Начальник управління Кременчуцького ЛВУМГ Кучерук В.М. | Z46: 02.03.2017 р.
C47: Підрозділу підприємства, якому підпорядкована лабораторія | M47: прізвище | V47: підпис | Z47: дата
B48: Начальник лабораторії ВХАЛ Кучерук Н.М. | Z48: 02.03.2017 р.
C49: Лабораторія, де здійснювалось вимірювання газу | M49: прізвище | V49: підпис | Z49: дата
B50: Провідний економіст із збуту Кривулькін І.В. | Z50: 02.03.2017 р.
C51: Підрозділу, відповідального за облік газу за маршрутом | M51: прізвище | V51: підпис | Z51: дата

Sheet додаток
A2: Додаток до Паспорту фізико-хімічних показників природного газу № 855
A4: Область | B4: ГРС, прямий споживач | C4: Cередньозважене значення вищої теплоти згоряння
C5: МДж/м³ | D5: ккал/м³ | E5: кВт*год./м³
A6: Полтавська область | B6: ГРС Полтава - 1 | C6: 38.30100803 | D6: 9148.038735 | E6: 10.6391689
B7: ТОВ "Епіцентр" | C7: 38.30166898 | D7: 9148.196598 | E7: 10.63935249
B8: ТОВ " Форт" | C8: 38.30099248 | D8: 9148.035019 | E8: 10.63916458
B9: ДП "Укравтогаз" АГНКС-1 м. Полтава | C9: 38.30562795 | D9: 9149.142183 | E9: 10.64045221
B10: ДП "Укравтогаз" АГНКС-2 м. Полтава | C10: 38.30237576 | D10: 9148.365411 | E10: 10.63954882
A11: Середньозважене значення вищої теплоти згоряння по маршруту № 855 | C11: 38.30101655 | D11: 9148.04077 | E11: 10.63917127
A15: Начальник управління Кременчуцького ЛВУМГ Кучерук В.Н.
A16: Підрозділу підприємства, якому підпорядкована лабораторія | D16: прізвище | E16: підпис | F16: дата
A17: Начальник лабораторії ВХАЛ Кучерук Н.М.
A18: Лабораторія, де здійснювалось вимірювання газу | D18: прізвище | E18: підпис | F18: дата
A19: Провідний економіст із збуту Кривулькін І.В.
A20: Підрозділу, відповідального за облік газу за маршрутом | D20: прізвище | E20: підпис | F20: дата

Sheet variablesList (hidden)
A1: 3 | B1: x:\gaysin | C1: 10, 11, 24, 25, 127, 128, 132, 180, 207, 215 | D1: x:\
B2: x:\Illinci
B3: x:\Talne
